Cogmind - Beta 13 *** ADVENTURER MODE // 2024.04.07 @ 14:19:26 Player: Plonker Result: Destroyed by S-10 Pest with Light Assault Rifle Performance ------------- Evolutions (1) 500 Regions Visited (2) 400 Robots Destroyed (13) 65 Value Destroyed (396) 396 Prototype IDs (4) 80 Alien Tech Used (0) 0 Bonus (200) 200 TOTAL SCORE: 1641 Bonus ------- Pacifist 200 Cogmind --------- Core Integrity 0/400 Matter 139/300 Energy 750/750 System Corruption 0% Temperature Cool (0) Movement Walking (190) Ox1 Location -9/Materials Parts ------- > --- POWER (1) -------- Ion Engine > --- PROPULSION (2) --- Improved Aluminum Leg Improved Aluminum Leg > --- UTILITY (4) ------ Large Storage Unit High-capacity Battery High-capacity Battery > --- WEAPON (2) ------- Improved EM Shotgun > --- INVENTORY (15) --- Light Ion Engine Hover Unit Peak State ------------ > --- POWER ------------ Ion Engine > --- PROPULSION ------- Improved Aluminum Leg Improved Aluminum Leg > --- UTILITY ---------- Large Storage Unit High-capacity Battery High-capacity Battery > --- WEAPON ----------- Improved EM Shotgun Improved EM Shotgun > --- INVENTORY -------- (None) [Rating: 14] Favorites ----------- Power Light Ion Engine Engine Light Ion Engine Propulsion Compact Wheel Leg Improved Aluminum Leg Wheel Compact Wheel Utility High-capacity Battery Device Structural Scanner Storage High-capacity Battery Weapon Medium Laser Energy Gun Medium Laser Launcher Grenade Launcher Build | -11 -10 -9 ------- Run | Yrd Mat Mat Slots Evolved 2 | . . 2 Power . | . . . Propulsion . | . . . Utility 2 | . . 2 Weapon . | . . . Parts Attached 18 | 6 1 11 Power 2 | 1 . 1 Engine 2 | 1 . 1 Core . | . . . Reactor . | . . . Propulsion 4 | 2 . 2 Treads . | . . . Leg 2 | . . 2 Wheel 2 | 2 . . Hover . | . . . Flight . | . . . Utility 5 | 1 1 3 Device 1 | . 1 . Storage 4 | 1 . 3 Processor . | . . . Hackware . | . . . Protection . | . . . Artifact . | . . . Weapon 7 | 2 . 5 Energy Gun 6 | 2 . 4 Energy Cannon . | . . . Ballistic Gun . | . . . Ballistic Cannon . | . . . Launcher 1 | . . 1 Special Weapon . | . . . Impact Weapon . | . . . Slashing Weapon . | . . . Piercing Weapon . | . . . Special Melee Weapon . | . . . Unidentified Prototypes 1 | . . 1 Parts Lost 9 | . . 9 Power 1 | . . 1 Propulsion 2 | . . 2 Utility 1 | . . 1 Weapon 5 | . . 5 Highest Loss Streak 6 | . . 6 To Critical Strikes . | . . . Average Slot Usage (%) 82 | . 97 80 Engine 9 | . 14 8 Leg 4 | . . 5 Wheel 11 | . 28 9 Device 7 | . 11 6 Storage 29 | . 14 31 Energy Gun 18 | . 28 17 Naked Turns . | . . . Heaviest Build 39 | 12 13 39 Greatest Support 26 | 26 26 26 Greatest Overweight (x) 11 | . . 11 Average Overweight (x) . | . . 1 Largest Inventory Capacity 15 | 8 8 15 Average Capacity 12 | 6 8 13 Most Carried 5 | 2 3 5 Average Carried 2 | . 1 2 Final Capacity 15 | 8 8 15 Final Carried 2 | 1 2 2 Class Distribution -------------------- 100% | Mutant Dominant Class ---------------- Mutant | -10/Materials Mutant | -9/Materials Resources | -11 -10 -9 ----------- Run | Yrd Mat Mat Matter Collected 211 | 211 . . Remotely . | . . . Salvage Created 348 | . . 348 Parts 19 | . . 19 Haulers Intercepted . | . . . Recyclers Shooed 1 | . . 1 Parts Field Recycled . | . . . Retrieved Matter . | . . . Parts Self-Destructed . | . . . Prevented . | . . . Kills | -11 -10 -9 ------- Run | Yrd Mat Mat Combat Hostiles Destroyed 12 | . . 12 Guns 4 | . . 4 AOE 8 | . . 8 Classes Destroyed 4 | . . 4 Watcher 1 | . . 1 Swarmer 3 | . . 3 Grunt 8 | . . 8 Sentry 1 | . . 1 Best Kill Streak 11 | . . 11 Combat Bots Only 11 | . . 11 Max Kills in Single Turn 4 | . . 4 Gunslinging . | . . . Exploded 4 | . . 4 Melee . | . . . Uniques/NPCs Destroyed . | . . . Combat | -11 -10 -9 -------- Run | Yrd Mat Mat Hostile Shots Fired 192 | . . 192 Missed 44 | . . 44 Damage Taken 1323 | . . 1323 Core 404 | . . 404 Absorbed by Shields . | . . . Ignored by Resistances 413 | . . 413 Core Remaining (%) 100 | 100 100 . Volleys Fired 13 | . . 13 Largest 2 | . . 2 Hottest 106 | . . 106 Shots Fired 21 | . . 21 Gun 17 | . . 17 Cannon . | . . . Launcher 4 | . . 4 Special . | . . . Kinetic . | . . . Thermal 13 | . . 13 Explosive 4 | . . 4 Electromagnetic 4 | . . 4 Robot Hit Streak 16 | . . 16 Robot Miss Streak 1 | . . 1 Penetration Max . | . . . Secondary Targets 1 | . . 1 Max Gunslinging Chain 1 | . . 1 Shots Hit Robots 20 | . . 20 Core Hits 24 | . . 24 Critical Kills . | . . . Critical Parts Destroyed . | . . . Critical Strikes 2 | . . 2 Burn 2 | . . 2 Melee Attacks . | . . . Impact . | . . . Slashing . | . . . Piercing . | . . . Sneak Attacks . | . . . Combat Hostiles . | . . . Follow-up Attacks . | . . . Damage Inflicted 887 | . . 887 Guns 259 | . . 259 Cannons . | . . . Explosions 628 | . . 628 Melee . | . . . Ramming . | . . . Kinetic . | . . . Thermal 177 | . . 177 Explosive 628 | . . 628 Electromagnetic 82 | . . 82 Impact . | . . . Slashing . | . . . Piercing . | . . . Highest Corruption . | . . . Average Corruption . | . . . Corruption Purged . | . . . Corruption Blocked . | . . . Overload Shots . | . . . Overflow Damage 34 | . . 34 Projectiles . | . . . Explosions 34 | . . 34 Melee . | . . . Knockbacks . | . . . Impact . | . . . Kinetic . | . . . Secondary . | . . . Self-Inflicted Damage 85 | . . 85 Shots 4 | . . 4 Rammed 1 | . . 1 Targets Rammed 1 | . . 1 Kicked . | . . . Crushed . | . . . Highest Temperature 80 | . . 80 Average Temperature 35 | . . 35 Received Heat Transfer 717 | . . 717 Siege Activations . | . . . Robots Corrupted . | . . . Combat Hostiles . | . . . Parts Fried 1 | . . 1 Impact Corruptions . | . . . Robots Melted . | . . . Combat Hostiles . | . . . Parts Melted 2 | . . 2 Heat Transferred 592 | . . 592 Parts Sabotaged . | . . . Parts Stolen . | . . . Parts Stripped . | . . . Power Chain Reactions . | . . . Alert | -11 -10 -9 ------- Run | Yrd Mat Mat Peak Influence 346 | . 8 346 Initial 2 | . . 2 Average 113 | . 4 138 Maximum Alert Level 1 | . . 1 Low Security (%) 72 | 100 100 66 Level 1 27 | . . 33 Level 2 . | . . . Level 3 . | . . . Level 4 . | . . . Level 5 . | . . . High Security . | . . . Max Security . | . . . Squads Dispatched 1 | . . 1 Investigation 1 | . . 1 Extermination . | . . . Reinforcement . | . . . Assault . | . . . Garrison . | . . . Intercept . | . . . Searches Triggered . | . . . Construction Impeded . | . . . Haulers Reinforced . | . . . Active Scanning Responses . | . . . Cargo Convoy Interrupts . | . . . Stealth | -11 -10 -9 --------- Run | Yrd Mat Mat Distress Signals 3 | . . 3 Communications Jammed . | . . . Distress Signals . | . . . Times Spotted 31 | . . 31 Peak Tracking Total 16 | . . 16 Tactical Retreats 4 | . . 4 Traps | -11 -10 -9 ------- Run | Yrd Mat Mat Traps Triggered 2 | . . 2 Indirectly . | . . . Trap Hack Attempts . | . . . Triggered . | . . . Disarmed . | . . . Reprogrammed . | . . . Reused . | . . . Traps Extracted . | . . . Installed . | . . . Triggered . | . . . Machines | -11 -10 -9 ---------- Run | Yrd Mat Mat Machines Disabled 2 | . . 2 Max in Single Turn 2 | . . 2 Machines Repaired . | . . . Machines Dismantled . | . . . Machines Sabotaged . | . . . Overloaded Fab Kills . | . . . Hacking | -11 -10 -9 --------- Run | Yrd Mat Mat Machines Accessed 4 | . 2 2 Terminals 4 | . 2 2 Fabricators . | . . . Repair Stations . | . . . Recycling Units . | . . . Scanalyzers . | . . . Garrison Access . | . . . Total Hacks 12 | . 7 5 Successful 9 | . 5 4 Failed 3 | . 2 1 Catastrophic . | . . . Database Lockouts . | . . . Manual 6 | . 2 4 Terminals 12 | . 7 5 Fabricators . | . . . Repair Stations . | . . . Recycling Units . | . . . Scanalyzers . | . . . Garrison Access . | . . . Terminal Hacks 5 | . 3 2 Prototype ID Bank 2 | . 1 1 Emergency Access Points 1 | . 1 . Unreport Threat 1 | . . 1 Hauler Manifests 1 | . 1 . Fabricator Hacks . | . . . Repair Station Hacks . | . . . Recycling Unit Hacks . | . . . Scanalyzer . | . . . Garrison Access Hacks . | . . . Unauthorized Hacks 4 | . 2 2 Terminals 4 | . 2 2 Botnet 4 | . 2 2 Fabricators . | . . . Repair Stations . | . . . Recycling Units . | . . . Scanalyzers . | . . . Garrison Access . | . . . Data Cores Recovered . | . . . Used . | . . . Hacking Detections 3 | . 2 1 Full Trace Events 1 | . 1 . Feedback Events . | . . . Feedback Blocked . | . . . Robot Schematics Acquired . | . . . Robots Built . | . . . Authchips . | . . . Time . | . . . Total Robot Build Rating . | . . . Part Schematics Acquired . | . . . Parts Built . | . . . Authchips . | . . . Time . | . . . Total Part Build Rating . | . . . Parts Repaired . | . . . Time . | . . . Parts Recycled . | . . . Recycled Matter . | . . . Retrieved Matter . | . . . Retrieved Components . | . . . Parts Scanalyzed . | . . . Part Schematics Acquired . | . . . Parts Damaged . | . . . Bothacking | -11 -10 -9 ------------ Run | Yrd Mat Mat Used RIF Installer . | . . . Robots Hacked . | . . . Non-combat . | . . . Combat . | . . . Robot Hacks Applied . | . . . Relay Couplers Released . | . . . Fabnet Peak Effective % . | . . . Robots Rewired . | . . . Allies Hacked . | . . . Hacks Repelled . | . . . Allies | -11 -10 -9 -------- Run | Yrd Mat Mat Total Allies . | . . . Largest Group . | . . . Highest-Rated Group . | . . . Highest-Rated Ally . | . . . Total Orders . | . . . Ally Attacks . | . . . Total Damage . | . . . Kills . | . . . Allies Corrupted . | . . . Allies Melted . | . . . Intel | -11 -10 -9 ------- Run | Yrd Mat Mat Robot Analysis Total . | . . . Derelict Logs Recovered . | . . . Drone Launches . | . . . Drone Recoveries . | . . . Exploration | -11 -10 -9 ------------- Run | Yrd Mat Mat Turns Passed 512 | 41 53 418 Spaces Moved 343 | 33 56 254 Core 12 | 1 . 11 Treads . | . . . Legs 42 | . . 42 Wheels 289 | 32 56 201 Hover . | . . . Flight . | . . . Fastest Speed 50 | 50 90 90 Average Speed 124 | 86 90 136 Slowest Speed 600 | 90 90 600 Overloaded Moves . | . . . Propulsion Burnouts . | . . . Robots Hopped . | . . . Cave-ins Triggered . | . . . Exploration Rate (%) 18 | 4 18 33 Regions Visited 2 Branch Regions . Pre-discovered Areas . | . . . Known Exits Taken . | . . . Unknown Exits Taken 2 | 1 1 . Scrap Searched . | . . . Spaces Dug . | . . . Terrain Destroyed 23 | . . 23 Melee . | . . . Projectile . | . . . AOE 23 | . . 23 Terrain Rammed . | . . . Walls Destroyed . | . . . Machines Disabled . | . . . Actions | -11 -10 -9 --------- Run | Yrd Mat Mat Total 403 | 45 58 300 Wait 6 | . . 6 Move 341 | 32 55 254 Hop . | . . . Pick Up 21 | 7 2 12 Fast Attach . | . . . Attach 17 | 6 1 10 Detach . | . . . Swap 1 | . . 1 Drop 3 | . . 3 Fire 13 | . . 13 Melee . | . . . Ram 1 | . . 1 Kick . | . . . Crush . | . . . Escape Stasis . | . . . Rewire . | . . . Trap . | . . . Miscellaneous . | . . . Route ------- -11/Scrapyard -10/Materials -9/Materials History --------- Turn | Location | Event 21 | -11/Scrapyard | Discovered new exit (range 16) 42 | -11/Scrapyard | Entered Materials 82 | -10/Materials | Discovered new exit (range 6) 95 | -10/Materials | Entered another Materials area 95 | -9/Materials | Evolved 2 slots: Utility x2 309 | -9/Materials | Build established: Mutant 344 | -9/Materials | Core integrity fell below 50% 379 | -9/Materials | Destroyed 11 combat bots 389 | -9/Materials | Core integrity fell below 20% 407 | -9/Materials | Lost 6 parts (1n1u4w) 513 | -9/Materials | Destroyed by S-10 Pest with Light Assault Rifle Last Messages --------------- 00458_ Switching to secondary target: G-34 Mercenary. 00462_ Acquired Hover Unit. 00465_ Acquired Lgt. Ion Engine. 00473_ K-01 Serf collects debris. 00478_ K-01 Serf cleans the Electrolysis Chamber. 00482_ K-01 Serf collects debris. 00484_ K-01 Serf cleans the Electrolysis Chamber. 00491_ R-06 Scavenger collects Corrupted Signal Interpreter. 00492_ K-01 Serf cleans the Electrolysis Chamber. 00496_ K-01 Serf destroyed. 00497_ K-01 Serf cleans the Electrolysis Chamber. 00500_ K-01 Serf collects debris. 00508_ Imp. EM Shotgun destroyed. 00508_ K-01 Serf collects debris. Map ----- +----------------------------------------------------+ | ######????????????????????????????? | | ######????????????????????????????? | | ! ##????????????????????????????? | | ##????????????????????????????? | | ##????????????????????????????? | | ##??#######???????????????????? | | ##??#######???????????????????? | | ###??## ##???????????????????? | | ###??## ##???????????????????? | | ##???## ##????? ???????????? | | ##???### ###????? ??????????? | | ######## ###???? ??????????? | | ######## ##????? ??????????? | | ##?????# #??????????? | | #+######### ##?????# #??????????? | | """ ##### ##?????# #??????????? | | "R" # ## ##?????# +??????????? | | %" [#% ## ##?????# #??????????? | | = %#[% # ##?????# #??????????? | | "" +%[ ##?????# #??????????? | | " ##### ##?????# #??????????? | | "" %[# # ##?????# #??????????? | | # ### ##?????# #??????????? | | ##+######## ######## #????? #???? | | #####?## s #### #???? | | #?????## s @ #???? | | ! ######## gk #???? | | %! g= #???? | | % #???? | | """ """ """ """ """ #???? | | """ """ """ """ """ #???? | | """ """ """ """ """ #???? | | #???? | | #???? | | """ """ """ """ """ "???? | | """ """ """ """ """ ? ???? | | """ """ """ """ ""???????? | | ? ????????? | | ? ? ? ????????? | | ### """ """ "?" ??" "????????? | | ??? """ "?" "?? ??? ?????????? | | ??? "?" ??? "??????????????????? | | ??? ?? ??? ???????????????????? | | ??? ??? ??? ???????????????????? | | ??????????????????????????????????? | | ??????????????????????????????????? | | ??????????????????????????????????? | | ??????????????????????????????????? | | ??????????????????????????????????? | | ??????????????????????????????????? | +----------------------------------------------------+ Best States ------------- Heat Dissipation 28 Energy Generation 10 Energy Capacity 750 Matter Stores 251 Matter Capacity 300 Sight Range 16 Terrain Scan Density 10 Resistance: KI 20 Resistance: TH 20 Resistance: EX 20 Resistance: EM 20 Resistance: I 20 Resistance: S 20 Resistance: P 20 Evasion (%) 44 Offensive Hacking 10 Item Schematics ----------------- None Robot Schematics ------------------ None Fabricated ------------ Nothing Alien Tech Used ----------------- None Achievements -------------- None Challenges ------------ None Game ------ Seed ConcussiveCentriumOptics Manual? 0 Play Time 00:11:29 Cumulative 25.1 hours Start 2024.04.07 @ 14:06:11 End 2024.04.07 @ 14:19:26 Sessions 1 Manual Loads 0 Difficulty Adventurer Special Mode None Game No. 24 Rogue 0 Adventurer 24 Explorer 0 Win Type - Total 0 Types 0/0/0/0/0/0/0/0/0 Lore% 18 Gallery% 27 Achievement% 20 Wizard Run 0 Options --------- Layout 1 ASCII 0 Keyboard 0 Movement Numpad Keybinds 0 Fullscreen 2 Font 16/Tamsyn Map View 50x40 Zoom Use 0% Tactical HUD 1 Map Filters NONE Filters NONE Steam SD RUN: e7697d91-b18a-49ef-8d21-890388896252